{"text_format":"3","workbook":"xlsx","n_sheets":4,"sheets":["Formulário de Oferta","Dados do Gráfico","Divisão de Custos","Resumo do Custo da Oferta"],"not_rendered":{"charts":1,"images":2,"defined_names":11},"read":"whole","date_system":"1900"}

{"sheet":"Formulário de Oferta","index":0,"n_rows":21,"n_cols":6,"rows_kept":21,"merged":[[0,1,0,4],[1,1,1,2],[7,1,8,1],[7,2,8,2],[10,1,10,5],[12,1,12,5],[14,1,14,5],[15,1,15,2],[15,4,15,5],[16,1,16,2],[16,4,16,5],[18,1,18,5],[19,1,19,2],[19,4,19,5],[20,1,20,2],[20,4,20,5]]}
[null,"Formulário de Oferta de Construção"]
[null,"Informações do Proprietário",null,null,"Informações do Contratante"]
[null,"Nome","Introduza o Nome do proprietário nesta célula",null,"Empresa","Insira o nome da empresa contratante nesta célula"]
[null,"Endereço","Insira o Endereço do Proprietário nesta célula",null,"Nome","Introduza o nome do Empreiteiro nesta célula"]
[null,"Cidade, Código Postal","Insira o código Postal, o Estado e a Cidade do proprietário nesta célula",null,"Endereço","Insira o endereço do Contratante nesta célula"]
[null,"Telefone","Insira o número de telefone do proprietário nesta célula",null,"Cidade, Código Postal","Insira o código Postal, a Cidade, o Estado e o Código Postal do contratante nesta célula"]
[null,"E-mail","Insira o endereço de e-mail do proprietário nesta célula",null,"Telefone","Insira o número de telefone do contratante nesta célula"]
[null,"Nome do projeto","Introduza o nome do Projeto nesta célula",null,"E-mail","Insira o endereço de e-mail do contratante nesta célula "]
[{"$nulls":4},"Data de conclusão","Insira a data de Conclusão nesta célula"]
[null,"Âmbito do Trabalho"]
[null,"O âmbito do trabalho do projeto é aqui. Digite todas as especificações que gostaria. \n\nTexto de exemplo: Este vai ser um projeto simulado de criação de um grande conjunto de escadas. Utilizaremos apenas parênteses 2x4 e 2x8 para construir a moldura. As escadas serão cortadas do material 2x4. Não serão utilizados parafusos com menos de 2\".  Qualquer prego não será inferior a 10d. O peso da estrutura deve conter um mínimo de 500 libras por passo. Os passos serão nivelados com o da casa. Um quadro de corrida será afixado à casa. O contratante tratará da limpeza."]
[null,"Não Incluído"]
[null,"Os detalhes do projeto que não estão incluídos são aqui. Escrever tudo o que não está incluído nesta oferta. \n\nTexto de exemplo: Não serão instaladas calhas. Solo a ser preparado pelo proprietário. Escadas a serem pintadas pelo proprietário."]
[null,"Proposta da Empresa"]
[null,"A proposta da empresa é apresentada aqui. Digite uma de visão geral da proposta, incluindo quem está a propor o trabalho, a data de conclusão esperada e o montante da proposta.\n\nTexto de exemplo: Nós, Nome da Empresa, propomos o âmbito de trabalho acima, para ser concluído até à Data de Conclusão pelo montante total."]
[]
[null,"Submetido por (Representante da Empresa)",null,null,"Data"]
[null,"Aceitação do Proprietário"]
[null,"A aceitação do proprietário é colocada aqui. Digite o nome do Proprietário numa declaração de confirmação que inclua a data de conclusão e o montante total indicados na proposta da empresa. \n\nTexto de exemplo: Eu, Nome do Proprietário, aceito o âmbito de trabalho acima, proposto para ser concluído até à Data de Conclusão para o valor total do montante."]
[]
[null,"Submetido por (proprietário da casa ou representante autorizado)",null,null,"Data"]

{"sheet":"Dados do Gráfico","index":1,"n_rows":7,"n_cols":3,"rows_kept":7,"hidden":true}
[]
[null,null,"Total"]
[null,{"$f":"INDEX(BidItems[#Data],MATCH(1,BidItems[Custos Classificados],0),2)","v":"Encargos de mão-de-obra"},{"$f":"INDEX(BidItems[#Data],MATCH(1,BidItems[Custos Classificados],0),4)","v":200}]
[null,{"$f":"INDEX(BidItems[#Data],MATCH(2,BidItems[Custos Classificados],0),2)","v":"madeiras de 2x4x10"},{"$f":"INDEX(BidItems[#Data],MATCH(2,BidItems[Custos Classificados],0),4)","v":99.39999999999999}]
[null,{"$f":"INDEX(BidItems[#Data],MATCH(3,BidItems[Custos Classificados],0),2)","v":"Suporte de vigas"},{"$f":"INDEX(BidItems[#Data],MATCH(3,BidItems[Custos Classificados],0),4)","v":74.7}]
[null,{"$f":"INDEX(BidItems[#Data],MATCH(4,BidItems[Custos Classificados],0),2)","v":"madeiras de 2x8x10"},{"$f":"INDEX(BidItems[#Data],MATCH(4,BidItems[Custos Classificados],0),4)","v":33.75}]
[null,{"$f":"INDEX(BidItems[#Data],MATCH(5,BidItems[Custos Classificados],0),2)","v":"Par de luvas, couro"},{"$f":"INDEX(BidItems[#Data],MATCH(5,BidItems[Custos Classificados],0),4)","v":15.5}]

{"sheet":"Divisão de Custos","index":2,"n_rows":14,"n_cols":6,"rows_kept":14,"merged":[[0,1,0,4],[1,1,1,4]]}
[null,"Divisão de Custos",{"$nulls":3}," "]
[null,"Lista de Materiais e Custos"]
[null,"Qtd.","Descrição","Custo","Total","Custos Classificados"]
[null,5,"madeiras de 2x8x10",{"v":6.75,"d":"6.75 €"},{"$f":"IFERROR(BidItems[[#This Row],[Custo]]*BidItems[[#This Row],[Qtd.]], \"\")","v":{"v":33.75,"d":"33.75 €"}},{"$f":"_xlfn.RANK.EQ(BidItems[[#This Row],[Total]],BidItems[Total])","v":4}]
[null,20,"madeiras de 2x4x10",{"v":4.97,"d":"4.97 €"},{"$f":"IFERROR(BidItems[[#This Row],[Custo]]*BidItems[[#This Row],[Qtd.]], \"\")","v":{"v":99.39999999999999,"d":"99.40 €"}},{"$f":"_xlfn.RANK.EQ(BidItems[[#This Row],[Total]],BidItems[Total])","v":2}]
[null,30,"Suporte de vigas",{"v":2.49,"d":"2.49 €"},{"$f":"IFERROR(BidItems[[#This Row],[Custo]]*BidItems[[#This Row],[Qtd.]], \"\")","v":{"v":74.7,"d":"74.70 €"}},{"$f":"_xlfn.RANK.EQ(BidItems[[#This Row],[Total]],BidItems[Total])","v":3}]
[null,2,"Caixa de parafusos, 2 polegadas",{"v":6.67,"d":"6.67 €"},{"$f":"IFERROR(BidItems[[#This Row],[Custo]]*BidItems[[#This Row],[Qtd.]], \"\")","v":{"v":13.34,"d":"13.34 €"}},{"$f":"_xlfn.RANK.EQ(BidItems[[#This Row],[Total]],BidItems[Total])","v":6}]
[null,2,"Caixa de pregos, 10d",{"v":3.25,"d":"3.25 €"},{"$f":"IFERROR(BidItems[[#This Row],[Custo]]*BidItems[[#This Row],[Qtd.]], \"\")","v":{"v":6.5,"d":"6.50 €"}},{"$f":"_xlfn.RANK.EQ(BidItems[[#This Row],[Total]],BidItems[Total])","v":7}]
[null,2,"Par de luvas, couro",{"v":7.75,"d":"7.75 €"},{"$f":"IFERROR(BidItems[[#This Row],[Custo]]*BidItems[[#This Row],[Qtd.]], \"\")","v":{"v":15.5,"d":"15.50 €"}},{"$f":"_xlfn.RANK.EQ(BidItems[[#This Row],[Total]],BidItems[Total])","v":5}]
[null,2,"Encargos de mão-de-obra",{"v":100,"d":"100.00 €"},{"$f":"IFERROR(BidItems[[#This Row],[Custo]]*BidItems[[#This Row],[Qtd.]], \"\")","v":{"v":200,"d":"200.00 €"}},{"$f":"_xlfn.RANK.EQ(BidItems[[#This Row],[Total]],BidItems[Total])","v":1}]
[4,null,null,"Subtotal",{"$f":"SUBTOTAL(109,BidItems[Total])","v":{"v":443.18999999999994,"d":"443.19 €"}}]
[5,null,null,"Taxa de imposto",{"v":0.075,"d":"7.50%"}]
[{"$nulls":3},"Imposto",{"$f":"IFERROR(TaxRate*BidItems[[#Totals],[Total]], \"\")","v":{"v":33.23924999999999,"d":"33.24 €"}}]
[{"$nulls":3},"Total geral",{"$f":"IFERROR(Imposto+BidItems[[#Totals],[Total]], \"\")","v":{"v":476.4292499999999,"d":"476.43 €"}}]

{"sheet":"Resumo do Custo da Oferta","index":3,"n_rows":3,"n_cols":4,"rows_kept":3}
[null,"Resumo do Custo da Oferta"]
[null,"Discriminação de Materiais e Custos",null,"Notas"]
[null,"Gráfico circular a mostrar os cinco principais custos por material. Os dados baseiam-se na tabela Itens de Oferta na folha de cálculo Divisão de Custos",null,"Introduza as notas nesta célula."]